bitfinex/quotes_ETHUSD_20250731
["timestamp","ask_amount","ask_price","bid_price","bid_amount"]
[1753975122088,0.132,3788.8,3788.7,4.134]
[1753975122287,3.01833486,3788.8,3788.7,4.134]
[1753975122669,3.5882917,3788.8,3788.7,4.134]
[1753975123066,4.0297917,3788.8,3788.7,4.134]
[1753975123270,3.5882917,3788.8,3788.7,4.134]
[1753975123469,3.01833486,3788.8,3788.7,4.134]
[1753975124001,0.37897676,3788.8,3788.7,4.134]
[1753975124209,0.37897676,3788.8,3788.7,4.5841]
[1753975124210,0.24697676,3788.8,3788.7,4.5841]
[1753975124368,0.174,3788.9,3788.8,0.8101]
[1753975124573,0.042,3788.9,3788.8,5.19990247]
[1753975126313,0.042,3788.9,3788.8,5.33190247]
[1753975127185,0.042,3788.9,3788.8,8.28460247]
[1753975127384,0.04,3789.9,3789.8,2.63866167]
[1753975127689,0.04,3789.9,3789.8,6.77166167]
[1753975128022,0.04,3789.9,3789.8,7.71466167]
[1753975128936,1e-08,3789.9,3789.8,21.00384663]
[1753975129096,1e-08,3790.3,3790.1,2.63845281]
[1753975129301,0.04,3790.9,3790.8,2.6379656]
[1753975129494,0.04,3790.9,3790.8,7.5985656]
[1753975129693,0.04,3790.9,3790.8,9.52210997]
[1753975131841,0.04,3790.9,3790.8,9.72187109]
[1753975132199,0.4719,3791.8,3791.0,2.63781482]
[1753975132418,0.082,3791.6,3791.1,4.265]
[1753975132624,0.082,3791.6,3791.2,0.4575]
[1753975132943,0.082,3791.6,3791.3,4.6185]
[1753975133320,2.71942251,3791.6,3791.3,4.6185]
[1753975133530,0.082,3791.6,3791.3,4.6185]
[1753975133998,0.082,3791.6,3791.4,1.2854]
[1753975134198,0.082,3791.6,3791.5,4.132]
[1753975134442,0.04,3791.9,3791.5,4.132]
[1753975134443,0.132,3791.7,3791.5,5.075]
[1753975134612,0.132,3791.7,3791.6,3.580409]
[1753975134802,0.04,3791.9,3791.8,3.41436989]
[1753975135139,0.04,3791.9,3791.8,7.54636989]
[1753975135300,0.04,3791.9,3791.8,9.33791426]
[1753975135721,0.04,3791.9,3791.8,1.3946]
[1753975135935,0.04,3791.9,3791.8,8.16286989]
[1753975136137,0.04,3791.9,3791.8,8.62036989]
[1753975136732,0.04,3791.9,3791.8,0.9091]
[1753975137057,0.04,3791.9,3791.8,4.131]
[1753975137058,3.61930034,3791.9,3791.8,4.131]
[1753975137344,0.04,3791.9,3791.8,4.131]
[1753975137639,3.61930034,3791.9,3791.8,4.131]
[1753975137810,0.04,3791.9,3791.8,4.131]
[1753975138329,0.04,3791.9,3791.8,0.4855]
[1753975138529,0.04,3791.9,3791.8,4.7485]
[1753975138729,0.04,3791.9,3791.8,0.132]
[1753975138955,0.04,3791.9,3791.8,4.131]
[1753975139715,3.14910034,3791.9,3791.8,4.131]
[1753975140047,0.9821,3791.9,3791.8,4.131]
[1753975140250,2.42443352,3791.9,3790.3,0.7623]
[1753975140458,2.63817438,3790.5,3790.4,4.131]
[1753975140751,2.63817438,3790.5,3789.2,0.4575]
[1753975140752,0.7505,3790.2,3789.2,0.132]
[1753975141043,0.7505,3790.2,3788.3,1.02652839]
[1753975141044,2.63907948,3789.2,3788.9,4.131]
[1753975141267,3.58117948,3789.2,3788.9,4.131]
[1753975141428,7.41366797,3789.2,3788.9,4.137]
[1753975141754,7.41366797,3789.2,3788.7,4.138]
[1753975141755,7.38067948,3789.2,3788.7,4.138]
[1753975142058,7.38067948,3789.2,3788.1,0.041]
[1753975142059,8.38264274,3789.2,3788.3,4.138]
[1753975142565,0.7505,3789.2,3788.9,4.138]
[1753975142853,1.2207,3789.7,3788.9,4.138]
[1753975143036,2.6388912,3789.5,3788.9,4.138]
[1753975143611,2.6388051,3789.6,3788.8,2.63934641]
[1753975143840,3.0,3789.8,3788.8,2.63934641]
[1753975143841,3.9421,3789.8,3789.2,4.139]
[1753975144006,0.65807307,3789.7,3789.2,4.139]
[1753975144212,2.63895553,3789.4,3789.2,4.139]
[1753975144432,0.9421,3789.6,3789.2,4.139]
[1753975144635,2.63874651,3789.7,3789.2,4.139]
[1753975144846,0.55,3789.8,3789.2,4.139]
[1753975145147,2.63900984,3789.3,3789.2,4.139]
[1753975145445,3.58110984,3789.3,3789.2,4.139]
[1753975145650,0.4719,3789.3,3788.6,0.8289]
[1753975145833,3.49786797,3789.2,3788.4,4.139]
[1753975146162,7.40697948,3789.2,3788.9,4.139]
[1753975147067,3.0,3789.2,3788.9,4.139]
[1753975147504,5.63907948,3789.2,3788.9,4.139]
[1753975148216,2.63907948,3789.2,3788.9,4.139]
[1753975148924,2.63898836,3789.4,3788.9,4.139]
[1753975149124,2.6389335,3789.5,3788.9,4.139]
[1753975149554,2.72927764,3789.6,3788.9,4.139]
[1753975149768,4.43157764,3789.6,3788.9,4.139]
[1753975150046,4.43157764,3789.6,3789.2,0.4855]
[1753975150807,0.132,3789.3,3789.2,0.4855]
[1753975151208,0.132,3789.3,3788.9,4.139]
[1753975151458,0.132,3789.3,3788.9,6.77827493]
[1753975151813,0.002,3789.2,3789.1,0.5255]
[1753975152010,0.002,3789.2,3789.1,0.04]
[1753975152216,0.9441,3789.2,3789.1,4.172]
[1753975152471,1.3189075,3789.2,3789.1,4.172]
[1753975152623,0.3768075,3789.2,3789.1,4.172]
[1753975152821,0.002,3789.2,3789.1,4.172]
[1753975153137,0.002,3789.2,3789.1,7.29664913]
[1753975153339,0.002,3789.2,3789.1,7.75414913]
[1753975153709,0.002,3789.2,3789.1,7.88614913]
[1753975153912,0.002,3789.2,3789.1,6.81114913]
[1753975154344,0.002,3789.2,3789.1,7.29664913]
[1753975155156,0.002,3789.2,3789.1,7.75414913]
[1753975155364,0.002,3789.2,3789.1,7.29664913]
[1753975155512,0.002,3789.2,3789.1,6.81114913]
[1753975156266,0.002,3789.2,3789.1,7.26604913]
[1753975156754,0.002,3789.2,3789.1,6.81114913]
[1753975158424,0.002,3789.2,3789.1,7.26604913]
[1753975160266,0.002,3789.2,3789.1,6.81114913]
[1753975160759,0.002,3789.2,3789.1,4.186]
[1753975160936,0.134,3789.2,3789.1,4.186]
[1753975163327,0.134,3789.2,3789.1,6.82514913]
[1753975163549,0.134,3789.2,3789.1,4.186]
[1753975167446,0.134,3789.2,3789.1,0.04]
[1753975167647,1.3672754,3789.2,3789.1,4.172]
[1753975167881,1.0467,3789.2,3789.1,4.172]
[1753975168184,3.68577948,3789.2,3789.1,4.172]
[1753975168386,3.93232518,3789.2,3789.1,4.172]
[1753975170184,3.45242518,3789.2,3789.1,4.172]
[1753975170488,0.8133457,3789.2,3789.1,4.172]
[1753975170785,3.45242518,3789.2,3789.1,4.172]
[1753975171081,3.01962518,3789.2,3789.1,4.172]
[1753975171286,0.3805457,3789.2,3789.1,4.172]
[1753975171791,3.01962518,3789.2,3789.1,4.172]
[1753975172014,3.93232518,3789.2,3789.1,4.172]
[1753975172287,4.67110984,3789.2,3789.1,4.172]
[1753975172659,5.25409833,3789.2,3789.1,0.04]
[1753975172864,6.18928844,3788.9,3788.8,0.001]
[1753975173074,7.3446521,3788.9,3788.8,0.001]
[1753975173461,8.2573521,3788.9,3788.8,0.001]
[1753975177000,0.55,3788.6,3788.4,1e-08]
[1753975177201,11.84841494,3788.5,3788.4,1e-08]
[1753975177366,12.32831494,3788.5,3788.4,1e-08]
[1753975177562,12.76111494,3788.5,3788.4,1e-08]
[1753975178184,12.89311494,3788.5,3788.4,1e-08]
[1753975178487,17.02511494,3788.5,3788.4,1e-08]
[1753975178686,28.94322395,3788.5,3788.4,1e-08]
[1753975178913,4.01187614,3788.2,3788.1,1e-08]
[1753975179068,11.14192066,3788.2,3788.1,1e-08]
[1753975179269,11.10892346,3788.2,3788.1,1e-08]
[1753975179579,12.02162346,3788.2,3788.1,1e-08]
[1753975179968,15.02162346,3788.2,3788.1,1e-08]
[1753975181082,9.97692346,3788.2,3788.1,1e-08]
[1753975181631,3.0189398,3788.2,3788.1,0.45490001]
[1753975181915,3.0189398,3788.2,3788.1,1e-08]
[1753975182286,3.0189398,3788.2,3788.1,0.45490001]
[1753975182485,0.37916366,3788.2,3788.1,0.90480001]
[1753975182716,0.002,3789.2,3788.1,1.73759508]
[1753975182916,0.24607101,3789.1,3788.9,0.8244]
[1753975183102,0.134,3789.2,3789.0,5.0368]
[1753975183620,0.24606591,3789.1,3789.0,5.0368]
[1753975184621,2.9182044,3789.1,3789.0,4.132]
[1753975184926,6.62555776,3789.1,3789.0,4.132]
[1753975185607,2.88521504,3789.1,3789.0,4.132]
[1753975185817,4.20721504,3789.1,3789.0,4.132]
[1753975186243,3.96114913,3789.1,3789.0,4.132]
[1753975187023,4.20727941,3789.1,3789.0,4.132]
[1753975187389,3.96114913,3789.1,3789.0,4.132]
[1753975187583,5.0126402,3789.1,3789.0,4.132]
[1753975187909,1.05149107,3789.1,3789.0,4.132]
[1753975188110,0.002,3789.2,3789.0,5.8705]
[1753975188325,0.002,3789.2,3789.0,4.9467]
[1753975188519,0.002,3789.2,3789.1,0.4772]
[1753975188923,2.63914913,3789.1,3789.0,4.132]
[1753975189123,3.4380262,3789.1,3789.0,4.132]
[1753975189329,6.4380262,3789.1,3789.0,4.132]
[1753975189924,2.63942777,3788.7,3788.6,4.133]
[1753975192130,2.8859013,3788.7,3788.6,4.6102]
[1753975192316,2.63942777,3788.7,3788.6,4.6102]
[1753975192517,3.55264262,3789.1,3788.6,5.0568]
[1753975192688,0.002,3789.2,3788.7,1.7159]
[1753975192891,0.002,3789.2,3788.8,0.9238]
[1753975193093,2.63915839,3789.1,3788.8,0.9238]
[1753975193291,2.63915839,3789.1,3788.9,0.9238]
[1753975193501,2.63915839,3789.1,3789.0,0.4772]
[1753975193706,2.64110086,3789.2,3789.0,0.4772]
[1753975193904,2.64110086,3789.2,3789.1,4.6082]
[1753975194929,2.64110086,3789.2,3789.1,4.131]
[1753975195316,0.99680472,3789.2,3789.0,4.131]
[1753975195495,2.63914913,3789.1,3789.0,4.131]
[1753975195854,6.18914913,3789.1,3789.0,4.131]
[1753975196051,6.18942777,3788.7,3788.6,0.001]
[1753975196193,6.18942777,3788.7,3787.7,0.4476]
[1753975196194,6.18977614,3788.2,3787.8,4.131]
[1753975196403,6.32177614,3788.2,3787.8,4.131]
[1753975196601,6.78857614,3788.2,3787.8,4.131]
[1753975197230,6.32177614,3788.2,3787.8,4.131]
[1753975197445,7.87862237,3788.2,3787.8,4.6082]
[1753975197807,8.12529593,3788.2,3787.8,4.6082]
[1753975198413,8.12531283,3788.2,3787.8,4.6082]
[1753975198943,8.12531283,3788.2,3787.8,4.131]
[1753975200200,0.24669046,3788.2,3788.1,0.92380001]
[1753975200470,0.132,3788.2,3788.1,1.67800001]
[1753975200745,0.132,3788.3,3788.1,1.67800001]
[1753975200953,0.132,3788.3,3788.1,0.75420001]
[1753975201110,2.77170646,3788.3,3788.2,4.131]
[1753975201310,3.01839333,3788.3,3788.2,4.6082]
[1753975201551,1.0168,3788.9,3788.2,5.0548]
[1753975201552,2.63954606,3788.6,3788.2,5.0548]
[1753975201858,2.88632593,3788.5,3788.3,0.9238]
[1753975202065,0.55,3788.9,3788.4,0.9238]
[1753975202267,0.24673586,3788.8,3788.5,0.9238]
[1753975202418,0.24673586,3788.7,3788.6,5.0548]
[1753975202943,0.132,3788.8,3788.7,2.63942777]
[1753975203112,0.132,3789.0,3788.6,4.131]
[1753975203312,2.77122751,3789.0,3788.7,0.9238]
[1753975203541,0.132,3789.0,3788.8,0.9238]
[1753975203735,0.132,3789.0,3788.6,6.77044948]
[1753975203950,0.132,3789.0,3788.9,0.9238]
[1753975204449,0.37871267,3789.0,3788.9,0.4772]
[1753975204809,0.37871267,3789.0,3788.6,4.131]
[1753975205009,0.132,3789.0,3788.7,0.9238]
[1753975205214,2.77122165,3789.0,3788.8,0.4772]
[1753975205415,0.4688,3789.2,3788.6,4.131]
[1753975205624,0.132,3788.8,3788.6,4.131]
[1753975205838,2.63942777,3788.7,3788.6,4.131]
[1753975206477,2.63942777,3788.7,3788.1,1e-08]
[1753975206478,5.63977614,3788.2,3788.1,1e-08]
[1753975206762,5.77177614,3788.2,3788.1,4.13000001]
[1753975206934,6.61292294,3788.2,3788.1,4.13000001]
[1753975209455,8.333736,3788.2,3788.1,1e-08]
[1753975211824,8.33386706,3788.2,3788.1,1e-08]
[1753975212433,7.40986706,3788.2,3788.1,1e-08]
[1753975213427,7.40986706,3788.2,3788.1,0.47720001]
[1753975213758,8.33386706,3788.2,3788.1,1e-08]
[1753975214056,7.87666706,3788.2,3788.1,1e-08]
[1753975214377,7.40986706,3788.2,3788.1,1e-08]
[1753975216137,7.40986706,3788.2,3788.1,0.93230001]
[1753975216338,7.40986706,3788.2,3788.1,1e-08]
[1753975217165,8.35586706,3788.2,3788.1,1e-08]
[1753975217547,7.40986706,3788.2,3788.1,1e-08]
[1753975218068,8.35586706,3788.2,3788.1,0.00100001]
[1753975218257,7.40986706,3788.2,3788.1,0.00100001]
[1753975219532,7.40986706,3788.2,3788.1,0.49020001]
[1753975219731,7.40986706,3788.2,3788.1,0.93330001]
[1753975221344,7.40986706,3788.2,3788.1,0.49020001]
[1753975221665,7.40986706,3788.2,3788.1,0.00100001]
[1753975221666,8.35586706,3788.2,3788.1,0.00100001]
[1753975222152,9.12966706,3788.2,3788.1,0.00100001]
[1753975222473,7.40986706,3788.2,3788.1,0.00100001]
[1753975223068,8.35586706,3788.2,3788.1,0.00100001]
[1753975224058,9.12236706,3788.2,3788.1,0.00100001]
[1753975224633,7.27786706,3788.2,3788.1,0.00100001]
[1753975224830,7.40986706,3788.2,3788.1,0.00100001]
[1753975225570,0.132,3788.3,3788.1,4.3631228]
[1753975225773,0.24689563,3788.7,3788.2,1.717]
[1753975225971,0.24689563,3788.6,3788.3,3.57198969]
[1753975226145,0.24689563,3788.5,3788.4,3.57193678]
[1753975226346,0.24689563,3789.0,3788.6,2.6394674]
[1753975226535,0.24688884,3788.9,3788.7,7.55310934]
[1753975226738,0.134,3789.1,3788.7,7.55310934]
[1753975226739,0.134,3789.1,3788.8,0.9323]
[1753975226975,0.134,3789.1,3788.9,4.129]
[1753975226976,0.24687059,3789.0,3788.9,4.129]
[1753975227162,0.132,3789.0,3788.8,4.6182]
[1753975227342,0.132,3789.0,3788.9,0.4892]
[1753975227544,2.77121879,3789.0,3788.9,0.4892]
[1753975227881,0.132,3789.0,3788.9,0.9323]
[1753975229173,0.132,3789.0,3788.7,0.7847]
[1753975229483,0.132,3789.0,3788.8,4.6182]
[1753975229680,2.63928844,3788.9,3788.8,4.6182]
[1753975229871,2.77128844,3788.9,3788.8,4.6182]
[1753975230072,2.6393581,3788.8,3788.3,0.8124]
[1753975230288,2.63960834,3788.5,3788.4,4.129]
[1753975230455,0.002,3789.1,3788.4,4.6182]
[1753975230659,0.132,3788.5,3788.4,4.5721]
[1753975231380,0.132,3788.8,3788.4,5.0613]
[1753975231558,0.132,3788.8,3788.5,0.9323]
[1753975232077,0.132,3788.8,3788.4,4.129]
[1753975232385,0.132,3788.8,3788.6,0.9323]
[1753975232680,0.132,3788.8,3788.6,3.57179668]
[1753975232978,0.132,3788.8,3788.7,0.9323]
[1753975233378,0.132,3788.8,3788.7,1.7447]
[1753975233579,2.64124209,3789.0,3788.7,1.7447]
[1753975233878,2.77130512,3788.9,3788.8,4.6172]
[1753975234089,2.6393581,3788.8,3788.5,0.4892]
[1753975234256,2.6394501,3788.7,3788.6,4.128]
[1753975234459,0.132,3788.6,3788.1,0.81340001]
[1753975234642,2.63977614,3788.2,3788.1,0.00100001]
[1753975234848,3.39762258,3788.2,3788.1,0.00100001]
[1753975235347,3.39762258,3788.2,3788.1,4.12900001]
[1753975236004,3.39762258,3788.2,3788.1,0.00100001]
[1753975236294,8.14037368,3788.2,3788.1,0.00100001]
[1753975238219,6.64437368,3788.2,3788.1,0.00100001]
[1753975238387,6.01852724,3788.2,3788.1,0.00100001]
[1753975239254,6.01852724,3788.2,3788.1,0.49020001]
[1753975239988,6.01852724,3788.2,3788.1,0.93330001]
[1753975240487,6.01852724,3788.2,3788.1,0.00100001]
[1753975241489,3.132,3788.4,3788.1,0.93330001]
[1753975241706,3.132,3788.4,3788.2,6.4953]
[1753975241859,3.0,3788.3,3788.2,6.0061]
[1753975242494,3.0,3788.3,3788.2,6.4953]
[1753975243384,5.63970646,3788.3,3788.2,5.563]
[1753975243702,6.484134,3788.3,3788.2,5.563]
[1753975244375,6.73089432,3788.3,3788.2,5.563]
[1753975244570,6.73089432,3788.3,3788.1,0.00100001]
[1753975244571,2.63977614,3788.2,3788.1,0.00100001]
[1753975244773,3.33314363,3788.2,3788.1,5.55900001]
[1753975244986,4.83959874,3788.2,3788.1,5.55900001]
[1753975245326,4.14623125,3788.2,3788.1,5.55900001]
[1753975247072,0.132,3788.2,3788.1,6.01260001]
[1753975247272,0.132,3788.2,3788.1,7.21480001]
[1753975247659,6.608,3789.0,3788.1,7.21480001]
[1753975247963,0.24676974,3788.9,3788.6,0.7553]
[1753975248193,0.24676974,3788.9,3788.7,6.3825]
[1753975248388,0.24676974,3788.9,3788.7,5.482]
[1753975248559,0.24676974,3788.9,3788.8,0.4536]
[1753975248758,2.77324663,3789.0,3788.8,0.4536]
[1753975249184,0.134,3789.0,3788.7,5.482]
[1753975249386,0.134,3789.0,3788.9,0.4536]
[1753975249813,3.01997179,3789.0,3788.9,0.4536]
[1753975250116,3.01997179,3789.0,3788.7,5.9289]
[1753975250117,0.38075329,3789.0,3788.7,5.482]
[1753975250275,2.63934869,3788.9,3788.7,5.482]
[1753975251013,0.132,3788.9,3788.8,0.9005]
[1753975251610,0.132,3788.9,3788.7,5.482]
[1753975251829,0.37874308,3788.9,3788.7,5.482]
[1753975251970,0.37874308,3788.9,3788.8,0.9005]
[1753975251971,0.132,3788.9,3788.8,0.9005]
[1753975252171,0.132,3788.9,3788.8,2.61389487]
[1753975252475,0.132,3788.9,3788.8,1.7117]
[1753975253877,0.002,3789.0,3788.9,3.39828844]
[1753975254212,0.002,3789.0,3788.9,4.29878844]
[1753975255777,0.002,3789.0,3788.9,9.54478844]
[1753975260709,0.002,3789.0,3788.9,9.09788844]
[1753975261111,0.002,3789.0,3788.9,7.97688844]
[1753975261617,0.002,3789.0,3788.9,4.884]
[1753975261784,0.002,3789.0,3788.9,4.125]
[1753975261981,3.58306692,3789.0,3788.4,6.341]
[1753975262180,0.62261658,3788.9,3788.5,4.125]
[1753975262420,0.002,3789.0,3788.5,4.5786]
[1753975262588,0.002,3789.0,3788.7,2.63941381]
[1753975262786,0.002,3789.0,3788.8,4.125]
[1753975263200,0.4641,3789.0,3788.8,4.125]
[1753975263510,0.002,3789.0,3788.8,4.125]
[1753975263919,0.132,3788.9,3788.8,4.125]
[1753975264417,0.002,3789.0,3788.9,3.42568844]
[1753975264587,0.002,3789.0,3788.9,4.32618844]
[1753975265785,0.002,3789.0,3788.9,4.33456958]
[1753975267283,0.002,3789.0,3788.9,3.87928844]
[1753975268017,0.002,3789.0,3788.8,4.257]
[1753975268549,0.9438,3789.0,3788.8,4.257]
[1753975268852,0.9418,3788.9,3788.8,4.257]
[1753975269055,0.9418,3788.9,3788.8,4.125]
[1753975269203,1.0738,3788.9,3788.8,4.125]
[1753975269539,1.70961286,3788.9,3788.8,4.125]
[1753975269758,0.76781286,3788.9,3788.8,4.125]
[1753975269900,0.132,3788.9,3788.8,4.125]
[1753975270250,0.132,3788.9,3788.8,5.0255]
[1753975270430,0.002,3789.0,3788.8,7.66481401]
[1753975270597,0.002,3789.0,3788.9,1.2199]
[1753975271204,1.7189,3789.0,3787.8,0.7953]
[1753975271402,1.7189,3789.0,3788.2,4.124]
[1753975271403,2.63970646,3788.3,3788.2,4.124]
[1753975271618,3.71350646,3788.3,3788.2,4.124]
[1753975271816,0.132,3788.3,3788.2,4.124]
[1753975272064,0.002,3789.0,3788.2,5.3729]
[1753975272234,0.4621,3788.8,3788.2,4.124]
[1753975272441,0.132,3788.4,3788.2,4.124]
[1753975272619,0.5941,3788.4,3788.2,4.124]
[1753975272822,1.0738,3788.4,3788.2,4.124]
[1753975273246,3.23374258,3788.4,3788.0,0.2264]
[1753975273441,3.23374258,3788.4,3788.3,4.124]
[1753975273442,3.27493801,3788.4,3788.3,4.124]
[1753975273760,6.27493801,3788.4,3788.3,4.124]
[1753975273961,5.63977614,3788.2,3788.0,0.2264]
[1753975274161,5.77177614,3788.2,3788.1,4.12500001]
[1753975274460,6.71357614,3788.2,3788.1,4.12500001]
[1753975274759,7.78993756,3788.2,3788.1,4.12500001]
[1753975275130,7.78993756,3788.2,3788.1,0.00100001]
[1753975275324,0.4621,3788.5,3788.1,0.00100001]
[1753975275549,0.132,3788.3,3788.2,4.124]
[1753975276074,0.8235,3789.0,3788.2,7.66427171]
[1753975276291,0.132,3788.7,3788.2,5.0245]
[1753975276422,0.37813014,3788.9,3788.4,0.132]
[1753975276627,0.37813014,3788.9,3788.5,4.604]
[1753975277027,0.132,3788.9,3788.5,4.604]
[1753975277336,0.132,3788.9,3788.6,0.48]
[1753975277669,2.77130188,3788.9,3788.5,4.124]
[1753975277850,0.132,3788.9,3788.5,4.124]
[1753975278228,2.63949743,3788.6,3788.5,4.124]
[1753975278539,7.87271453,3788.6,3788.5,4.125]
[1753975279069,6.94457614,3788.2,3788.1,1e-08]
[1753975279277,7.1907051,3788.2,3788.1,1e-08]
[1753975279568,6.94554583,3788.1,3788.0,1e-08]
[1753975279865,8.12197479,3788.1,3788.0,1e-08]
[1753975280067,10.70785845,3788.1,3788.0,1e-08]
[1753975280867,14.83285845,3788.1,3788.0,1e-08]
[1753975281471,5.64012461,3787.7,3787.6,1e-08]
[1753975281668,5.64012461,3787.7,3786.1,0.4797]
[1753975281669,2.64103105,3786.4,3786.1,0.04]
[1753975281854,2.64117056,3786.2,3786.1,0.04]
[1753975282053,2.77317056,3786.2,3786.1,0.04]
[1753975282257,5.77317056,3786.2,3786.1,0.04]
[1753975282458,7.25347056,3786.2,3786.1,0.04]
[1753975282663,9.10940072,3786.2,3786.1,0.04]
[1753975283357,19.84540072,3786.2,3786.1,0.04]
[1753975284168,4.98793016,3786.2,3786.1,0.04]
[1753975284359,7.49047056,3786.2,3786.1,0.04]
[1753975284541,0.919,3786.2,3786.1,0.04]
[1753975284745,0.8307,3786.7,3786.1,0.52]
[1753975284959,0.132,3786.3,3786.1,0.52]
[1753975285141,0.132,3786.3,3786.2,3.12117056]
[1753975285345,0.132,3786.3,3786.2,0.9197]
[1753975285774,0.132,3786.3,3786.2,3.56087056]
[1753975285970,0.132,3786.3,3786.2,0.9197]
[1753975286173,6.61,3787.2,3786.4,2.64097685]
[1753975286473,0.132,3786.7,3786.5,0.48]
[1753975286878,0.03301114,3786.6,3786.2,0.132]
[1753975287077,2.64080385,3786.8,3786.1,0.04]
[1753975287301,0.132,3786.2,3786.1,0.04]
[1753975287450,2.77317056,3786.2,3786.1,0.04]
[1753975287985,3.35618519,3786.2,3786.1,0.04]
[1753975288184,7.25347056,3786.2,3786.1,0.04]
[1753975288866,8.05537056,3786.2,3786.1,0.04]
[1753975289205,15.65901239,3786.2,3786.1,0.04]
[1753975289484,16.14961239,3786.2,3786.1,0.04]
[1753975290283,16.14961239,3786.2,3784.8,0.001]
[1753975290284,0.7844,3785.2,3784.8,0.001]
[1753975290488,3.55826832,3785.2,3784.8,0.001]
[1753975291242,0.9164,3785.2,3784.8,0.001]
[1753975291461,0.132,3785.2,3784.8,0.001]
[1753975291857,0.132,3785.2,3785.1,0.521]
[1753975292684,0.132,3785.2,3785.1,0.041]
[1753975293053,2.77386832,3785.2,3785.1,0.041]
[1753975293250,0.132,3785.2,3785.1,0.041]
[1753975293487,2.77386832,3785.2,3785.1,0.041]
[1753975293657,3.31542177,3785.2,3785.1,0.041]
[1753975293982,7.82874512,3785.2,3785.1,0.041]
[1753975294144,7.79572177,3785.2,3785.1,0.041]
[1753975294660,7.30512177,3785.2,3785.1,0.041]
[1753975294863,0.132,3785.2,3785.1,0.041]
[1753975295184,2.77386832,3785.2,3785.1,0.041]
[1753975296289,3.32386832,3785.2,3785.1,0.041]
[1753975296591,2.77386832,3785.2,3785.1,0.041]
[1753975297065,0.132,3785.2,3785.1,0.041]
[1753975297265,0.132,3785.2,3785.1,0.521]
[1753975297478,0.132,3785.2,3785.1,0.041]
[1753975297787,0.132,3785.2,3785.1,0.521]
[1753975298495,2.64132163,3786.0,3785.3,2.64175372]
[1753975298651,2.64104035,3786.4,3785.5,2.64165896]
[1753975298850,6.76888041,3786.7,3785.6,0.9197]
[1753975299154,2.88488127,3786.6,3785.7,0.9197]
[1753975299497,0.132,3785.9,3785.8,0.48]
[1753975299994,2.77337985,3785.9,3785.8,0.48]
[1753975300296,2.64182931,3785.3,3785.1,0.521]
[1753975300493,0.132,3785.2,3785.1,0.521]
[1753975300986,0.132,3785.2,3785.1,0.9607]
[1753975301189,0.132,3785.2,3785.1,3.60263812]
[1753975301399,2.64120386,3786.2,3785.1,0.96914815]
[1753975301557,0.132,3785.8,3785.6,2.64156676]
[1753975301892,4.128,3786.7,3785.3,2.64173489]
[1753975301893,10.739,3786.7,3785.7,3.5612194]
[1753975302107,1.2188,3787.2,3785.9,2.64137985]
[1753975302405,2.6404745,3787.2,3786.1,0.132]
[1753975302572,0.132,3786.8,3786.6,0.8276]
[1753975302755,2.77248667,3787.2,3786.7,0.9197]
[1753975302961,0.132,3787.2,3786.6,1.30645115]
[1753975303154,2.77247399,3787.2,3786.8,0.9197]
[1753975303357,2.77247399,3787.2,3786.9,0.48]
[1753975303556,2.77247399,3787.2,3786.8,0.4397]
[1753975303557,0.132,3787.2,3786.8,0.4397]
[1753975303758,0.132,3787.2,3787.0,0.48]
[1753975304058,0.132,3787.2,3787.1,0.48]
[1753975304995,2.77247883,3787.2,3786.7,0.9197]
[1753975305307,3.19023378,3787.6,3786.6,0.8276]
[1753975305606,3.19023378,3787.6,3785.6,2.64258679]
[1753975305607,0.132,3786.8,3786.1,1.7431]
[1753975305830,0.132,3786.5,3786.1,1.7431]
[1753975305990,0.132,3786.5,3786.3,0.48]
[1753975306378,2.77299534,3786.5,3786.3,0.48]
[1753975306573,0.132,3786.5,3786.4,0.476]
[1753975306774,0.132,3786.5,3786.4,1.32607839]
[1753975306973,0.132,3786.9,3786.4,1.89027839]
[1753975307175,0.132,3786.9,3786.6,2.64088687]
[1753975307516,0.132,3786.9,3786.5,0.9082]
[1753975307830,0.132,3786.9,3786.6,0.9082]
[1753975308176,0.132,3786.9,3786.7,0.476]
[1753975308709,0.132,3786.9,3786.4,0.98207839]
[1753975308710,0.132,3786.9,3786.8,0.4322]
[1753975308913,0.132,3786.9,3786.4,0.608]
[1753975309226,3.04,3787.9,3786.7,0.817]
[1753975309521,2.6405234,3787.2,3786.8,0.608]
[1753975309813,2.88654187,3787.1,3786.9,0.476]
[1753975309973,2.88654187,3787.1,3786.8,0.4322]
[1753975309974,2.88656539,3787.0,3786.7,0.817]
[1753975310318,0.132,3787.0,3786.8,0.476]
[1753975310612,0.132,3787.0,3786.9,0.476]
[1753975310789,0.37806873,3787.0,3786.9,0.476]
[1753975310988,3.01868135,3787.0,3786.9,0.476]
[1753975311191,2.64075208,3786.8,3786.5,0.132]
[1753975311380,3.01868135,3787.0,3786.5,0.132]
[1753975311381,0.132,3787.0,3786.5,0.132]
[1753975311576,0.24645258,3786.9,3786.6,0.476]
[1753975311777,0.24645258,3786.8,3786.7,0.476]
[1753975312616,0.24645258,3786.8,3786.7,0.9082]
[1753975313414,0.132,3787.0,3786.7,0.9082]
[1753975313599,0.132,3787.0,3786.8,0.9082]
[1753975313809,0.132,3787.3,3786.9,0.9082]
[1753975314009,2.64052288,3787.2,3786.9,0.4322]
[1753975314219,2.64065754,3787.0,3786.8,4.259]